bitfinex/quotes_ETHUSD_20260209
["timestamp","ask_amount","ask_price","bid_price","bid_amount"]
[1770655738852,0.06677478,2106.5,2104.9,10.41768458]
[1770655739046,0.06677478,2106.6,2104.9,10.41768458]
[1770655739345,1.25343551,2106.8,2104.9,10.41768458]
[1770655739666,0.06877478,2107.0,2104.9,10.41768458]
[1770655739667,1.25533611,2107.0,2105.1,1.13759203]
[1770655739836,1.18856133,2107.0,2105.1,3.52493816]
[1770655740040,0.06677478,2106.6,2105.1,1.13759203]
[1770655740272,0.06677478,2106.2,2105.1,1.13759203]
[1770655740567,1.18856133,2107.0,2105.1,4.45559203]
[1770655740767,0.002,2107.0,2105.7,0.06677478]
[1770655740938,0.002,2107.0,2105.8,3.318]
[1770655741339,0.002,2107.0,2105.9,10.52008458]
[1770655741568,0.002,2107.0,2106.0,1.18708452]
[1770655741777,0.002,2107.0,2106.0,4.50508452]
[1770655742447,0.06677478,2106.6,2105.4,4.74949338]
[1770655742649,0.002,2107.0,2105.9,1.187128]
[1770655743155,0.002,2107.0,2106.0,3.318]
[1770655743336,0.06677478,2106.9,2105.9,1.187128]
[1770655743535,1.25339273,2106.9,2105.8,4.74856355]
[1770655743774,0.06677478,2106.7,2105.8,4.74856355]
[1770655744070,0.002,2107.0,2105.8,4.74856355]
[1770655744747,0.06677478,2106.9,2105.8,4.74856355]
[1770655744952,1.1885283,2107.0,2105.8,4.74856355]
[1770655744953,0.002,2107.0,2105.8,4.74856355]
[1770655745155,0.06677478,2106.9,2105.8,4.74856355]
[1770655745543,0.002,2107.0,2105.8,4.74856355]
[1770655745758,0.06677478,2106.9,2105.9,3.318]
[1770655745942,0.002,2107.0,2105.9,3.318]
[1770655746360,0.06677478,2106.6,2105.9,3.318]
[1770655746562,0.06677478,2106.8,2105.9,3.318]
[1770655746886,0.06677478,2106.1,2104.6,0.001]
[1770655747075,0.06677478,2105.8,2104.6,0.001]
[1770655747276,0.06677478,2105.7,2104.9,1.1876741]
[1770655747479,0.06677478,2105.6,2104.8,1.18771708]
[1770655747682,0.06677478,2105.0,2104.6,0.001]
[1770655747996,0.06677478,2105.0,2104.4,0.001]
[1770655747997,0.06677478,2104.9,2104.4,0.001]
[1770655748195,0.06677478,2105.2,2104.4,0.001]
[1770655748489,4.81624046,2105.6,2104.6,0.001]
[1770655748490,0.06677478,2105.6,2104.6,0.001]
[1770655748871,0.06677478,2105.5,2104.6,0.001]
[1770655749199,0.06677478,2105.3,2104.4,1.17498211]
[1770655749799,0.06677478,2104.9,2104.2,4.75194829]
[1770655749956,0.06677478,2105.1,2104.2,4.75194829]
[1770655750489,0.06677478,2104.9,2104.2,4.75194829]
[1770655750694,0.06677478,2104.7,2104.1,1.18813996]
[1770655750867,1.18740778,2105.5,2104.1,1.18813996]
[1770655751060,0.06677478,2105.1,2104.1,1.18813996]
[1770655751663,0.06677478,2104.9,2103.8,4.75262582]
[1770655751863,0.06677478,2104.9,2103.7,1.18838237]
[1770655751864,0.06677478,2104.7,2103.7,1.18838237]
[1770655752378,0.06677478,2104.5,2103.7,1.18838237]
[1770655752564,0.06677478,2104.2,2103.4,1.18850013]
[1770655752759,0.06677478,2104.2,2103.6,1.18842741]
[1770655752988,0.06677478,2105.0,2103.6,1.18842741]
[1770655753193,0.06677478,2104.8,2103.6,1.18842741]
[1770655753402,0.06677478,2105.0,2103.6,1.18842741]
[1770655753696,0.06677478,2104.9,2103.6,4.50642741]
[1770655753994,0.06677478,2104.6,2103.6,1.18842741]
[1770655754563,0.06677478,2104.4,2103.6,1.18842741]
[1770655755293,0.06677478,2104.2,2103.6,1.18843655]
[1770655755465,0.06677478,2104.8,2103.6,1.18843655]
[1770655755659,0.06677478,2104.6,2103.6,1.18843655]
[1770655755886,0.06677478,2104.6,2102.9,4.74458534]
[1770655756187,0.06677478,2104.6,2103.0,3.73202699]
[1770655756396,0.06677478,2105.0,2103.1,2.33873568]
[1770655756713,0.06677478,2104.8,2103.1,0.69459013]
[1770655756993,0.06677478,2104.7,2103.1,0.1024]
[1770655757507,0.92744344,2103.9,2102.9,1.1888191]
[1770655757695,0.06677478,2103.5,2102.9,1.18880416]
[1770655757868,0.06677478,2103.5,2101.9,15.16395416]
[1770655757869,0.06677478,2103.5,2102.0,1.18934348]
[1770655758592,1.25491826,2104.2,2102.3,10.41768458]
[1770655758795,0.06677478,2104.0,2102.4,0.1024]
[1770655759001,1.25487761,2104.2,2102.4,0.1024]
[1770655759198,0.06677478,2104.0,2102.4,0.1024]
[1770655759698,0.06677478,2104.0,2102.0,1.18934348]
[1770655759699,0.06677478,2103.4,2102.0,1.18934348]
[1770655759995,0.06677478,2103.2,2101.9,4.75737392]
[1770655760197,0.06677478,2103.0,2101.9,4.75737392]
[1770655760396,0.06677478,2103.2,2101.9,4.75737392]
[1770655761905,0.06677478,2103.1,2102.9,0.001]
[1770655762685,1.03844475,2103.6,2102.9,0.001]
[1770655762686,1.25524075,2103.6,2102.9,0.001]
[1770655762898,0.06677478,2103.4,2102.9,0.001]
[1770655763101,0.06677478,2103.1,2102.0,0.001]
[1770655763308,0.06677478,2103.4,2102.0,0.001]
[1770655763511,0.06677478,2103.2,2102.0,0.001]
[1770655763693,0.06677478,2102.9,2102.0,0.001]
[1770655763899,0.06677478,2102.8,2102.0,0.001]
[1770655764128,0.06677478,2102.6,2102.0,0.001]
[1770655764283,0.06677478,2102.8,2102.0,0.001]
[1770655764485,0.06677478,2103.0,2102.0,0.001]
[1770655764685,0.06677478,2102.8,2102.0,0.001]
[1770655764880,1.25555659,2103.0,2102.0,0.001]
[1770655765086,0.06677478,2102.8,2102.0,0.001]
[1770655765605,0.06677478,2102.6,2102.0,0.001]
[1770655765809,0.06677478,2102.4,2102.0,0.001]
[1770655766325,0.06677478,2102.4,2101.3,1.18973968]
[1770655766326,0.06677478,2102.1,2101.3,1.18973968]
[1770655766496,0.06677478,2101.9,2101.3,1.18973968]
[1770655766702,0.06677478,2102.1,2101.3,1.18973968]
[1770655767018,0.06677478,2102.3,2101.3,1.18973968]
[1770655767397,0.06677478,2102.3,2101.2,4.75995873]
[1770655767398,0.06677478,2101.9,2101.2,1.190767]
[1770655767604,0.06677478,2101.7,2101.2,0.001]
[1770655767827,0.06677478,2101.9,2101.2,1.19078766]
[1770655768024,0.06677478,2101.9,2101.2,0.001]
[1770655768220,0.06677478,2101.8,2101.2,0.001]
[1770655768628,0.06677478,2101.6,2101.2,0.001]
[1770655769006,0.06677478,2102.1,2101.2,0.001]
[1770655769327,0.06677478,2101.8,2101.2,0.001]
[1770655769726,0.06677478,2101.6,2101.2,0.001]
[1770655769912,0.06677478,2101.8,2101.2,0.001]
[1770655770106,0.06677478,2101.8,2100.3,4.71486481]
[1770655770433,0.06677478,2101.7,2100.3,4.71486481]
[1770655770810,0.06677478,2102.0,2100.3,4.71486481]
[1770655771009,0.06677478,2101.8,2100.3,4.71486481]
[1770655771318,0.06677478,2101.7,2100.3,4.71486481]
[1770655771524,0.06677478,2101.5,2100.3,4.71486481]
[1770655771724,0.06677478,2101.3,2100.3,4.71486481]
[1770655771917,0.06677478,2101.5,2100.3,4.71486481]
[1770655772537,0.06677478,2101.3,2100.3,4.71486481]
[1770655772907,0.06677478,2101.5,2100.3,4.71486481]
[1770655773102,0.06677478,2101.3,2100.3,4.71486481]
[1770655773309,0.06677478,2101.1,2100.2,1.19032165]
[1770655773806,4.75850582,2101.6,2100.2,1.19032165]
[1770655773807,0.06677478,2101.4,2100.2,1.19032165]
[1770655774035,0.06677478,2101.3,2099.8,4.76145129]
[1770655774331,0.06677478,2101.5,2100.5,0.001]
[1770655774548,0.06677478,2101.3,2100.5,0.001]
[1770655774844,1.25641423,2101.5,2100.5,0.001]
[1770655775029,0.06677478,2101.2,2100.5,0.001]
[1770655775207,0.06677478,2100.8,2100.3,0.001]
[1770655775624,0.06677478,2100.6,2100.3,0.001]
[1770655775910,0.06677478,2101.0,2100.3,0.001]
[1770655776106,0.06677478,2100.8,2100.3,0.001]
[1770655776335,0.06677478,2100.6,2100.3,0.001]
[1770655776834,0.06677478,2100.4,2100.3,0.001]
[1770655777048,0.06677478,2100.4,2099.5,4.76281196]
[1770655777256,0.06677478,2100.6,2099.6,0.001]
[1770655777564,0.06677478,2100.8,2099.6,0.001]
[1770655777836,0.06677478,2100.5,2099.6,0.001]
[1770655778248,0.06677478,2100.5,2099.5,4.26431196]
[1770655778431,0.06677478,2100.3,2099.5,4.26431196]
[1770655778629,1.25696777,2100.5,2099.5,4.26431196]
[1770655778953,0.06677478,2100.3,2099.5,1.1907597]
[1770655779245,0.06677478,2100.3,2099.4,8.08710437]
[1770655779246,0.06677478,2100.0,2099.4,1.19180822]
[1770655779745,0.06677478,2100.0,2099.4,1.19181421]
[1770655779746,0.06677478,2099.8,2099.4,1.19181421]
[1770655779914,0.06677478,2100.0,2099.4,1.19181046]
[1770655780117,0.06677478,2099.8,2099.4,0.001]
[1770655780335,1.03844475,2100.4,2099.4,0.001]
[1770655780336,0.06677478,2099.7,2099.4,0.001]
[1770655780619,0.06677478,2100.1,2099.4,0.001]
[1770655780942,0.06677478,2099.7,2099.4,0.001]
[1770655781141,0.06677478,2099.5,2098.9,0.001]
[1770655781571,0.06677478,2099.2,2098.9,0.001]
[1770655781772,0.06677478,2098.8,2098.5,1.19131389]
[1770655782059,0.06677478,2099.0,2098.5,1.19131667]
[1770655782259,0.06677478,2098.8,2098.0,1.19161105]
[1770655782649,0.06677478,2099.0,2098.0,1.19161105]
[1770655782849,0.06677478,2099.0,2097.9,1.19163486]
[1770655782850,0.06677478,2098.7,2097.9,1.19163486]
[1770655783158,0.06677478,2098.5,2097.9,1.19163486]
[1770655783365,0.06677478,2098.8,2097.9,1.19163486]
[1770655783543,0.06677478,2098.6,2097.9,1.19163486]
[1770655783731,0.06677478,2098.8,2097.9,1.19163486]
[1770655783936,0.06677478,2098.6,2097.9,1.19163486]
[1770655784143,0.06677478,2098.3,2097.7,1.19178147]
[1770655784541,0.06677478,2098.1,2097.7,1.19178147]
[1770655784742,0.06677478,2098.6,2097.7,1.19178147]
[1770655785279,0.06677478,2098.2,2097.6,0.03984605]
[1770655785439,0.06677478,2097.8,2097.6,0.03984605]
[1770655785641,0.06677478,2098.0,2097.6,1.23167906]
[1770655785842,0.06677478,2098.2,2097.6,1.23167906]
[1770655786144,0.98733288,2097.7,2096.9,0.001]
[1770655786339,0.06677478,2097.8,2096.9,0.001]
[1770655786340,0.06677478,2097.4,2097.0,1.19320676]
[1770655786539,0.06677478,2097.6,2096.9,1.11456318]
[1770655786847,0.06677478,2097.5,2096.9,1.11456318]
[1770655787064,0.06677478,2097.8,2096.9,1.11456318]
[1770655787272,0.06677478,2097.4,2096.9,1.19223152]
[1770655787593,0.06677478,2097.4,2096.9,1.19221996]
[1770655787877,0.06677478,2097.8,2096.9,1.1922267]
[1770655788075,0.06677478,2098.0,2097.0,0.001]
[1770655788273,0.06677478,2097.8,2097.0,0.001]
[1770655788476,4.76531457,2098.5,2097.0,0.001]
[1770655788477,0.98733288,2098.7,2097.0,0.001]
[1770655788688,1.19137228,2098.5,2097.0,0.001]
[1770655788889,0.98733288,2099.8,2097.7,11.12894064]
[1770655789083,0.98733288,2099.8,2097.8,3.328]
[1770655789084,0.06677478,2099.5,2097.8,3.328]
[1770655789250,0.06677478,2099.3,2097.8,0.63603618]
[1770655789454,0.06677478,2099.3,2097.9,3.328]
[1770655789768,0.06677478,2099.2,2097.9,3.328]
[1770655789967,0.06677478,2099.5,2097.8,0.63603618]
[1770655790278,0.06677478,2099.5,2097.3,1.82804495]
[1770655790279,0.06677478,2098.6,2097.3,1.82804495]
[1770655790479,0.06677478,2098.6,2097.0,0.001]
[1770655790480,0.06677478,2097.5,2097.0,0.001]
[1770655790777,0.06677478,2097.4,2097.2,1.19206345]
[1770655790963,0.06677478,2097.6,2097.2,1.19206345]
[1770655791174,0.98733288,2098.5,2097.2,1.19206345]
[1770655791388,10.49290446,2098.6,2097.0,0.001]
[1770655791389,0.06677478,2097.2,2097.0,0.001]
[1770655791584,0.06677478,2097.0,2096.7,1.19230894]
[1770655791892,0.06677478,2097.0,2096.4,0.001]
[1770655791893,0.06677478,2096.8,2096.4,0.001]
[1770655792195,0.06677478,2096.7,2096.4,0.001]
[1770655792493,0.06677478,2097.4,2096.4,0.001]
[1770655792788,0.06677478,2096.8,2096.4,0.001]
[1770655792989,0.06677478,2097.2,2096.4,0.001]
[1770655793379,0.06677478,2097.6,2096.4,0.001]
[1770655793583,0.06677478,2097.8,2096.4,0.001]
[1770655793785,0.06677478,2097.6,2096.4,0.001]
[1770655793966,0.06677478,2097.8,2096.4,0.001]
[1770655794161,0.06677478,2097.4,2096.4,0.001]
[1770655794366,0.06677478,2097.8,2096.4,0.001]
[1770655794566,0.06677478,2097.2,2096.4,0.001]
[1770655794796,0.06677478,2097.4,2096.4,0.001]
[1770655794990,0.06677478,2097.0,2096.4,0.001]
[1770655795295,0.06677478,2097.4,2096.4,0.001]
[1770655795594,0.06677478,2097.6,2096.4,0.001]
[1770655795793,0.06677478,2097.4,2096.4,0.001]
[1770655795994,0.06677478,2097.2,2096.4,0.001]
[1770655796197,0.06677478,2097.4,2096.4,0.001]
[1770655796497,0.06677478,2097.3,2096.4,0.001]
[1770655796665,0.06677478,2097.6,2096.4,0.001]
[1770655796866,0.06677478,2098.0,2096.4,0.63703618]
[1770655797067,0.06677478,2097.6,2096.4,0.63703618]
[1770655797292,0.06677478,2097.9,2096.4,0.63703618]
[1770655797474,0.06677478,2097.5,2096.4,0.63703618]
[1770655797674,0.06677478,2097.3,2096.4,0.001]
[1770655798080,0.06677478,2097.5,2096.4,0.001]
[1770655798385,1.05410766,2097.7,2096.4,0.001]
[1770655798581,0.06677478,2097.2,2096.4,0.001]
[1770655798768,0.06677478,2097.4,2096.4,0.001]
[1770655799484,0.06677478,2096.8,2096.4,0.001]
[1770655799793,0.06677478,2097.4,2096.4,0.001]
[1770655800093,0.06677478,2097.1,2096.4,0.001]
[1770655800403,0.06677478,2097.7,2096.4,3.331]
[1770655800596,1.25833119,2098.1,2096.6,0.001]
[1770655800907,0.002,2097.2,2096.6,0.001]
[1770655801113,0.06677478,2098.1,2096.6,0.63703618]
[1770655801278,0.002,2097.4,2096.6,0.63703618]
[1770655801468,0.06677478,2097.3,2096.6,0.001]
[1770655801678,0.002,2097.4,2096.6,0.001]
[1770655801984,0.06677478,2097.3,2096.6,0.001]
[1770655802169,0.002,2097.4,2096.6,0.001]
[1770655802366,0.06677478,2097.3,2096.6,0.001]
[1770655802666,0.06677478,2097.0,2096.6,0.001]
[1770655802907,0.06677478,2097.0,2096.4,0.001]
[1770655803092,0.06677478,2097.3,2096.4,0.001]
[1770655803296,0.06677478,2097.1,2096.4,0.001]
[1770655803519,0.06677478,2096.9,2096.4,0.001]
[1770655803689,0.06677478,2096.6,2096.1,1.1926741]
[1770655804001,0.06677478,2096.4,2095.8,1.19281385]
[1770655804182,0.06677478,2096.2,2095.8,1.19281385]
[1770655804373,0.06677478,2096.4,2095.5,0.001]
[1770655804569,0.06677478,2096.2,2095.5,0.001]
[1770655804782,0.06677478,2096.4,2095.5,0.001]
[1770655805003,0.06677478,2096.2,2095.5,0.001]
[1770655805621,0.06677478,2096.1,2095.5,0.001]
[1770655805911,0.06677478,2096.4,2095.5,0.001]
[1770655806485,0.06677478,2096.5,2095.5,0.001]
[1770655806689,0.06677478,2096.3,2095.5,0.001]
[1770655806881,0.06677478,2096.1,2095.5,0.001]
[1770655807208,1.19244622,2096.6,2095.5,0.001]
[1770655807506,0.06677478,2096.2,2095.5,0.001]
[1770655807798,0.06677478,2096.0,2095.5,0.001]
[1770655808000,0.06677478,2096.6,2095.5,0.001]
[1770655808206,0.06677478,2096.0,2095.0,4.27445196]
[1770655808500,0.06677478,2095.8,2094.9,1.19331742]
[1770655808701,1.25922712,2096.6,2094.9,1.19331742]
[1770655808912,0.06677478,2096.2,2094.9,1.19331742]
[1770655809106,0.06677478,2096.0,2094.9,1.19331742]
[1770655809317,0.06677478,2096.6,2094.9,11.68622188]
[1770655809477,0.06677478,2096.4,2094.9,12.32325806]
[1770655809676,0.06677478,2096.6,2094.9,12.32325806]
[1770655809924,0.06677478,2096.1,2094.9,1.8303536]
[1770655810081,0.06677478,2096.6,2094.9,1.8303536]
[1770655810289,0.06677478,2096.4,2094.9,12.32325806]
[1770655810509,0.06677478,2096.4,2094.9,1.8303536]
[1770655811125,5.82312527,2096.9,2095.0,0.63703618]
[1770655811126,0.06677478,2096.9,2095.0,0.63703618]
[1770655811303,0.06677478,2096.6,2095.0,0.63703618]
[1770655811638,0.06677478,2096.0,2094.9,1.19331742]
[1770655811921,0.06677478,2095.7,2094.9,1.19331742]
[1770655812122,0.06677478,2095.5,2094.9,1.19331742]
[1770655812287,0.06677478,2095.3,2094.6,3.332]
[1770655812487,0.06677478,2095.5,2094.7,4.77378659]
[1770655812700,0.06677478,2095.3,2094.7,4.77378659]
[1770655813218,0.06677478,2096.3,2094.7,5.41082277]
[1770655813515,0.002,2096.2,2095.1,0.001]
[1770655813713,6.09502788,2096.9,2095.1,0.001]
[1770655813714,0.06677478,2097.1,2095.5,0.63503618]
[1770655814013,0.06677478,2097.1,2095.6,3.333]
[1770655814314,0.002,2096.4,2095.7,0.63503618]
[1770655814517,0.002,2097.4,2095.9,0.63503618]
[1770655814817,0.002,2097.3,2095.9,0.63503618]
[1770655815017,0.002,2097.3,2096.1,11.12794064]
[1770655815222,0.002,2097.3,2096.2,0.63503618]
[1770655815584,0.06677478,2097.0,2095.8,1.19286191]
[1770655815785,0.06677478,2096.8,2095.9,3.333]
[1770655816185,0.06677478,2097.2,2095.9,3.333]
[1770655816384,0.06677478,2097.2,2096.0,1.19274809]
[1770655816789,0.06677478,2096.6,2096.0,1.19274809]
[1770655816991,0.06677478,2096.8,2096.0,1.19274809]
[1770655817531,0.002,2097.3,2096.0,1.19274809]
[1770655818388,0.06677478,2096.7,2096.0,1.19274809]
[1770655818592,0.06677478,2096.5,2096.0,1.19274809]
[1770655818816,0.06677478,2096.4,2096.0,1.19274809]
[1770655819416,0.06677478,2096.4,2095.9,4.77099236]
[1770655819417,0.06677478,2096.2,2095.9,1.19276055]
[1770655819620,0.06677478,2096.4,2095.9,1.19276055]
[1770655819818,0.06677478,2096.2,2095.8,1.19283832]
[1770655820015,0.06677478,2096.2,2095.8,1.19282197]
[1770655820317,0.06677478,2096.2,2095.9,1.19280319]
[1770655820618,0.06677478,2096.5,2095.4,1.19308962]
[1770655820819,0.06677478,2096.8,2095.4,1.19308962]
[1770655821125,0.06677478,2096.9,2095.4,1.19308962]
[1770655821464,0.06677478,2096.9,2095.5,3.333]
[1770655821465,0.06677478,2096.3,2095.5,3.333]
[1770655821720,0.06677478,2096.7,2095.5,3.333]
[1770655822029,1.32607741,2096.9,2095.5,3.333]
[1770655822030,0.06677478,2096.9,2095.5,3.333]
[1770655822319,0.06677478,2096.3,2095.5,3.333]
[1770655822489,0.06677478,2096.3,2095.6,1.19297575]
[1770655822688,0.06677478,2096.5,2095.6,1.19297575]
[1770655823129,0.06677478,2096.1,2095.6,1.19297575]
[1770655823330,0.06677478,2096.5,2095.6,1.19297575]
[1770655823617,0.06677478,2097.0,2095.6,1.19297575]
[1770655823820,0.06677478,2096.8,2095.6,1.19297575]
[1770655824194,1.25887993,2097.2,2095.6,1.19297575]
[1770655824494,0.06677478,2097.0,2095.6,1.19297575]
[1770655824815,0.06677478,2097.2,2095.6,3.53006031]
[1770655825219,0.06677478,2096.8,2095.6,1.19297575]
[1770655825416,0.06677478,2097.0,2095.6,1.19297575]
[1770655825417,0.06677478,2096.7,2095.6,1.19297575]
[1770655825617,0.06677478,2097.0,2095.6,1.19297575]
[1770655825937,0.06677478,2096.5,2095.6,1.19297575]
[1770655826103,0.06677478,2096.3,2095.6,1.19297575]
[1770655826306,1.25930263,2096.9,2095.6,1.19297575]
[1770655826510,0.06677478,2096.7,2095.7,0.001]
[1770655826718,0.002,2096.8,2095.8,3.333]
[1770655828642,0.002,2096.8,2095.9,1.192805]
[1770655829129,0.06677478,2097.1,2095.9,1.192805]
[1770655829316,0.06677478,2096.7,2095.9,1.192805]
[1770655829518,0.99495154,2096.9,2095.9,1.192805]
[1770655829705,1.25930263,2097.2,2095.9,1.192805]
[1770655829910,1.08993842,2097.1,2095.9,1.192805]
[1770655830142,0.06677478,2096.9,2095.9,1.192805]
[1770655831118,0.06677478,2096.7,2095.9,1.192805]
[1770655831324,0.06677478,2096.3,2095.9,1.192805]
[1770655831527,1.27890627,2096.8,2095.9,1.192805]
[1770655831712,0.06677478,2096.5,2095.9,1.192805]
[1770655831918,0.06677478,2096.7,2095.9,1.192805]
[1770655832140,0.06677478,2096.5,2095.9,1.192805]
[1770655832750,1.25912689,2096.7,2095.9,1.192805]
[1770655832933,0.06677478,2096.3,2095.9,1.192805]
[1770655833132,0.06677478,2096.5,2095.9,1.192805]
[1770655833455,0.06677478,2096.7,2095.9,1.192805]
[1770655833661,0.06677478,2096.7,2095.8,8.10422]
[1770655833662,0.06677478,2096.3,2095.8,4.52583395]
[1770655833859,0.06677478,2096.1,2095.8,3.333]
[1770655834028,0.06677478,2096.1,2095.8,4.52585008]
[1770655834226,0.06677478,2096.1,2095.8,1.19285869]
[1770655834738,0.06677478,2096.1,2095.7,0.001]
[1770655834934,0.06677478,2096.3,2095.7,0.001]
[1770655835128,1.25924952,2096.5,2095.7,0.001]
[1770655835324,0.06677478,2096.3,2095.7,0.001]
[1770655835658,0.06677478,2096.1,2095.7,0.001]
[1770655835827,1.34568105,2096.5,2095.7,0.001]
[1770655836031,2.34063259,2096.7,2095.7,0.001]
[1770655836356,2.27385781,2097.2,2095.7,0.001]
[1770655836528,1.09147362,2097.1,2095.7,0.001]
[1770655836734,1.02469884,2097.0,2095.7,1.19391883]
[1770655837054,0.06677478,2097.1,2095.7,1.19391883]
[1770655837238,1.02468046,2097.0,2095.7,1.19391883]
[1770655837435,0.06677478,2096.9,2095.7,1.19391883]
[1770655837650,0.06677478,2096.7,2095.7,1.19391883]
[1770655837854,0.06677478,2096.5,2095.7,1.19391883]
[1770655838332,2.27385781,2096.9,2095.7,1.19391883]
[1770655838527,0.06677478,2096.7,2095.7,1.19391883]
[1770655838854,0.06677478,2096.5,2095.7,0.001]
[1770655839158,0.06677478,2096.3,2095.7,0.001]
[1770655839362,1.25924489,2096.5,2095.7,0.001]
[1770655839570,0.06677478,2096.3,2095.7,0.001]
[1770655840746,1.27890627,2096.6,2095.7,1.19391883]
[1770655840944,1.02559446,2096.5,2095.7,1.19391883]
[1770655841172,1.27890627,2096.8,2095.7,1.19391883]
[1770655841500,1.0255683,2096.7,2095.7,1.19391883]
[1770655841647,0.002,2096.9,2095.7,1.19391883]
[1770655841971,1.02547688,2096.8,2095.7,1.19391883]
[1770655842174,1.28365654,2097.3,2095.7,3.51179278]
[1770655842378,1.28365654,2097.3,2095.8,2.39258765]
[1770655842546,1.35043132,2097.3,2095.8,2.39258765]
[1770655842742,1.35043132,2097.3,2095.7,3.51179278]
[1770655842942,1.35043132,2097.3,2095.8,2.39258765]
[1770655843169,0.06877478,2097.3,2095.7,1.19391883]
[1770655843373,0.06877478,2097.3,2095.7,3.51179278]
[1770655843374,0.002,2097.3,2095.7,3.51179278]
[1770655843674,0.002,2097.4,2095.7,3.51179278]
[1770655843675,0.002,2097.4,2096.5,12.84117466]
[1770655843854,0.06677478,2097.3,2096.5,3.333]
[1770655844058,0.002,2097.4,2096.5,3.333]
[1770655845079,0.002,2097.4,2096.6,1.19240675]
[1770655845461,0.06677478,2096.9,2096.6,1.19240675]
[1770655845664,0.06677478,2097.3,2096.5,1.19241783]
[1770655845966,0.06677478,2097.3,2096.5,1.19245293]
[1770655845967,0.06677478,2096.9,2096.5,1.19245293]
[1770655846158,0.06677478,2097.1,2096.5,1.19245293]
[1770655846356,2.70366731,2097.3,2096.5,1.19245293]
[1770655846679,0.06677478,2097.1,2096.5,1.19245293]
[1770655846880,0.06677478,2096.9,2096.4,1.19248343]
[1770655847584,0.06677478,2096.7,2096.3,4.52553916]
[1770655847790,0.06677478,2096.8,2096.3,4.52553916]
[1770655848163,0.06677478,2096.7,2096.3,4.52553916]
[1770655848363,0.06677478,2096.9,2096.3,4.52553916]
[1770655848566,0.99860348,2097.0,2096.3,4.52553916]
[1770655848871,0.06677478,2097.1,2096.3,4.52553916]
[1770655849073,0.06677478,2096.7,2096.3,4.52557255]
[1770655849394,0.06677478,2096.7,2096.2,1.19259288]
[1770655849566,0.06677478,2096.5,2096.1,1.19268792]
[1770655849967,0.06677478,2096.5,2096.0,1.19272498]
[1770655850164,0.06677478,2096.5,2096.0,1.19274395]
[1770655850367,0.06677478,2096.5,2095.8,1.19283976]
[1770655850368,0.06677478,2096.1,2095.8,1.19283976]
[1770655850672,0.06677478,2096.3,2095.8,1.19283622]
[1770655850873,0.06677478,2096.5,2095.7,0.001]
[1770655851673,0.06677478,2096.7,2095.7,0.001]
[1770655851674,0.06677478,2096.7,2095.8,3.333]
[1770655851863,0.06677478,2096.3,2095.8,3.333]
[1770655852193,0.06677478,2096.5,2095.8,3.333]
[1770655852392,0.06677478,2096.3,2095.8,3.333]
[1770655852591,0.06677478,2096.5,2095.9,0.001]
[1770655852766,0.06677478,2096.7,2095.9,0.001]
[1770655852965,0.06677478,2096.7,2095.9,1.193805]
[1770655853166,1.70706383,2096.9,2095.9,1.193805]
[1770655853362,0.002,2096.9,2095.9,1.193805]
[1770655853896,0.06677478,2096.4,2095.9,1.193805]
[1770655854061,0.06677478,2096.3,2095.9,1.193805]
[1770655855093,0.06677478,2096.6,2095.9,1.193805]
[1770655855094,0.06677478,2096.2,2095.9,0.001]
[1770655855386,1.02706202,2096.1,2095.9,0.001]
[1770655855594,0.06677478,2096.2,2095.9,0.001]
[1770655855790,1.02712631,2096.1,2095.9,0.001]
[1770655855977,0.06677478,2096.0,2095.9,0.001]
[1770655856371,1.09389672,2096.0,2095.9,0.001]
[1770655856976,1.09389672,2096.0,2095.6,0.001]
[1770655857279,0.06677478,2095.4,2095.2,0.04]
[1770655857477,1.06537826,2095.7,2095.2,0.042]
[1770655857790,0.06677478,2095.5,2095.2,0.042]
[1770655858090,1.02631477,2095.4,2095.2,0.04]
[1770655858303,1.06537826,2095.7,2095.2,0.04]
[1770655858491,0.06677478,2095.5,2095.2,0.04]
[1770655858697,0.99860348,2095.7,2095.2,0.04]
[1770655858873,1.09247738,2095.6,2095.2,1.2351939]
[1770655859065,0.06677478,2095.4,2095.2,0.04]
[1770655859479,0.06677478,2095.6,2095.2,0.04]
[1770655859676,1.0250559,2095.5,2095.2,0.04]
[1770655859893,0.06677478,2095.4,2095.2,0.04]
[1770655860298,0.06677478,2094.7,2094.2,0.03354388]
[1770655860496,0.06677478,2094.9,2094.3,1.19367154]
[1770655860497,1.77183861,2094.9,2094.3,1.19367154]
[1770655860801,3.41041672,2095.3,2094.4,1.19364398]
[1770655860802,1.70506383,2095.3,2094.4,1.19364398]
[1770655861104,0.06677478,2095.8,2094.4,3.49809102]
[1770655861268,3.8963141,2096.2,2094.5,11.16199073]
[1770655861470,2.62458732,2096.3,2094.6,0.63603618]
[1770655861471,0.06677478,2096.3,2094.6,0.63603618]
[1770655861695,0.06677478,2096.1,2094.7,0.63603618]
[1770655861900,0.06677478,2095.9,2094.4,0.1024]
[1770655862104,0.06677478,2096.1,2094.5,3.334]
[1770655862395,0.06677478,2095.9,2094.5,3.334]
[1770655862770,0.06677478,2095.9,2094.3,4.77463712]
[1770655862771,0.06677478,2095.7,2094.3,4.77463712]
[1770655862974,0.06677478,2095.5,2094.6,3.334]
[1770655863275,0.06677478,2096.2,2094.8,9.85446061]
[1770655863778,0.06677478,2095.8,2094.7,1.19348832]
[1770655863980,1.70506383,2096.4,2094.9,0.63603618]
[1770655864189,0.06877478,2096.9,2095.2,9.85446061]
[1770655864388,0.06677478,2096.7,2095.3,3.334]
[1770655864697,1.26102448,2096.9,2095.6,10.49049679]
[1770655864698,0.002,2096.9,2095.6,10.49049679]
[1770655864868,0.002,2096.9,2095.7,0.63603618]
[1770655865076,0.002,2096.9,2096.1,1.19269118]
[1770655865376,0.002,2097.1,2096.2,3.334]
[1770655865971,0.99860348,2098.1,2096.4,9.85446061]
[1770655866280,0.002,2098.3,2097.0,9.85446061]
[1770655866605,0.002,2098.3,2097.1,3.334]
[1770655867190,0.002,2098.3,2097.2,1.19206561]
[1770655867705,0.002,2098.1,2097.2,1.19206561]
[1770655868398,0.002,2098.3,2097.3,0.63603618]
[1770655868602,1.1910198,2099.1,2097.3,0.63403618]
[1770655868603,0.06677478,2099.1,2097.3,0.63403618]
[1770655868767,0.06677478,2099.9,2097.2,11.70131308]
[1770655868768,1.16143896,2100.5,2099.2,10.50924747]